Cogmind - Beta 15 @@@ ROGUE MODE // 2025.09.30 @ 00:43:53 Player: Figgis Result: Self-destructed Performance ------------- Evolutions (6) 3000 Regions Visited (12) 2400 Robots Destroyed (173) 865 Value Destroyed (6101) 6101 Prototype IDs (8) 160 Alien Tech Used (0) 0 Bonus (53) 53 TOTAL SCORE: 12579 Bonus ------- High Alert Combat Kills 64 Friendly Fire -11 Cogmind --------- Core Integrity 1104/1150 Matter 90/300 Energy 365/365 System Corruption 0% Temperature Cool (0) Movement Rolling (145) Ox3 Location -4/Factory Parts ------- > --- POWER (2) -------- Neutrino Core Micro Fission Core > --- PROPULSION (4) --- Carbon-fiber Leg Armored Huge Wheel > --- UTILITY (10) ----- Advanced Heat Sink Large Storage Unit Core Analyzer Improved Weapon Cycler Improved Heavy Armor Plating EM Shield Improved Force Field Advanced Hacking Suite > --- WEAPON (3) ------- Heavy Machine Gun Heavy Gauss Cannon > --- INVENTORY (15) --- Micro Fission Core Light Antimatter Reactor Advanced Medium Treads Advanced Medium Treads Advanced Heat Sink Improved Shock Absorption System Improved Shock Absorption System Improved Point Defense System Great Axe Peak State ------------ > --- POWER ------------ Neutrino Core Micro Fission Core > --- PROPULSION ------- Advanced Medium Treads Carbon-fiber Leg Armored Huge Wheel > --- UTILITY ---------- Advanced Heat Sink Large Storage Unit Advanced Gravity Neutralizer Core Analyzer Improved Weapon Cycler Improved Heavy Armor Plating Layered Medium Armor Plating Improved Force Field Advanced Hacking Suite > --- WEAPON ----------- Heavy Machine Gun Enhanced Gauss Cannon Heavy Gauss Cannon > --- INVENTORY -------- Micro Fission Core Light Antimatter Reactor Improved Shock Absorption System Improved Shock Absorption System EM Shield Great Axe [Rating: 103] Favorites ----------- Power Improved Deuterium Engine Engine Improved Deuterium Engine Power Core Micro Fission Core Propulsion VSS Leg Treads Improved Heavy Treads Leg VSS Leg Wheel Armored Huge Wheel Flight Unit Cesium-ion Thruster Utility Advanced Targeting Computer Device EM Shield Storage Large Storage Unit Processor Advanced Targeting Computer Hackware Hacking Suite Protection Hardened Medium Armor Plating Weapon Gauss Rifle Energy Gun Small Laser Ballistic Gun Gauss Rifle Ballistic Cannon Enhanced Gauss Cannon Launcher Precision Grenade Launcher Impact Weapon Hammer Piercing Weapon Heavy Pick Build | -11 -10 -10 -9 -8 -7 -7 -7 -6 -6 -6 -5 -4 ------- Run | Yrd Mat Min Mat Mat Fac Low Low Fac Was Fac Fac Fac Slots Evolved 12 | . . . 2 2 2 . . 2 . . 2 2 Power 1 | . . . . . . . . . . . 1 . Propulsion 2 | . . . . 2 . . . . . . . . Utility 8 | . . . 2 . 2 . . 2 . . . 2 Weapon 1 | . . . . . . . . . . . 1 . Parts Attached 157 | 6 9 5 18 18 34 6 1 5 1 18 27 9 Power 16 | 1 1 1 2 3 3 1 . . . 1 3 . Engine 9 | 1 1 1 1 2 2 1 . . . . . . Core 7 | . . . 1 1 1 . . . . 1 3 . Reactor . | . . . . . . . . . . . . . Propulsion 40 | 2 2 2 5 7 9 2 . . . 5 4 2 Treads 6 | 2 . . . . . . . . . 1 2 1 Leg 32 | . 2 2 5 6 9 2 . . . 4 1 1 Wheel 1 | . . . . . . . . . . . 1 . Hover . | . . . . . . . . . . . . . Flight 1 | . . . . 1 . . . . . . . . Utility 63 | 1 3 1 7 3 9 3 1 5 . 9 15 6 Device 20 | . 1 . 2 . 1 . . 3 . 1 8 4 Storage 4 | 1 1 . . . . . . 1 . . 1 . Processor 11 | . . . 4 . 3 . 1 . . 1 2 . Hackware 7 | . . . . 1 . . . . . 5 . 1 Protection 21 | . 1 1 1 2 5 3 . 1 . 2 4 1 Artifact . | . . . . . . . . . . . . . Weapon 38 | 2 3 1 4 5 13 . . . 1 3 5 1 Energy Gun 4 | 2 1 . 1 . . . . . . . . . Energy Cannon . | . . . . . . . . . . . . . Ballistic Gun 25 | . . 1 3 5 9 . . . 1 2 4 . Ballistic Cannon 3 | . . . . . 1 . . . . . 1 1 Launcher 4 | . 1 . . . 3 . . . . . . . Special Weapon . | . . . . . . . . . . . . . Impact Weapon 1 | . 1 . . . . . . . . . . . Slashing Weapon . | . . . . . . . . . . . . . Piercing Weapon 1 | . . . . . . . . . . 1 . . Special Melee Weapon . | . . . . . . . . . . . . . Unidentified Prototypes 6 | . . . . 2 2 . . . . 1 . 1 Parts Lost 49 | . 1 4 6 3 14 1 . . 8 . 10 2 Power 4 | . . 1 1 1 1 . . . . . . . Propulsion 11 | . . 1 1 . 6 . . . . . 3 . Utility 19 | . . 1 4 1 4 1 . . 4 . 3 1 Weapon 15 | . 1 1 . 1 3 . . . 4 . 4 1 Highest Loss Streak 8 | . 1 2 2 2 3 1 . . 8 . 4 2 To Critical Strikes 2 | . . . . . . . . . . . 1 1 Average Backups 11 | 2 7 12 14 14 14 15 15 15 12 4 4 6 Power 1 | . 1 1 2 . 1 3 3 3 2 . . 1 Propulsion 2 | . 1 3 5 2 2 1 2 2 2 . . . Utility 3 | . 2 3 4 5 4 3 3 3 2 2 2 2 Weapon 4 | . 2 2 2 4 5 7 7 7 4 . 1 1 Tool/Special . | . . . . . . . . . . . . . Unused Backups 40 | . . . 6 3 7 1 . . 13 2 1 7 Power 6 | . . . 1 . 1 . . . 3 . . 1 Propulsion 9 | . . . 4 . . . . . 3 1 . 1 Utility 14 | . . . 1 2 2 . . . 4 1 . 4 Weapon 10 | . . . . 1 3 1 . . 3 . 1 1 Tool/Special 1 | . . . . . 1 . . . . . . . Average Slot Usage (%) 92 | . 98 99 94 98 95 98 100 99 66 43 86 83 Engine 6 | . 14 13 4 6 6 7 7 6 4 . 1 . Core 2 | . . . 6 1 . . . . . 1 8 10 Treads 2 | . 12 . . . . . . . . 2 10 2 Leg 21 | . 15 27 21 35 29 30 30 26 16 3 . 5 Device 5 | . 11 5 2 . . 1 . 12 8 4 18 21 Storage 7 | . 14 14 11 9 7 7 7 6 4 . 1 5 Processor 10 | . . . 16 17 16 15 15 13 9 3 5 5 Hackware 5 | . . . . . 7 7 7 6 4 20 10 4 Protection 8 | . 1 8 8 9 8 11 15 13 7 1 8 9 Energy Gun 4 | . 27 19 10 . . . . . . . . . Ballistic Gun 10 | . . 2 11 17 13 14 15 13 8 4 11 5 Peak Build Rating 103 | 6 12 12 28 35 48 49 49 60 62 67 90 103 Average Rating 41 | 5 10 10 22 33 41 47 48 59 38 36 79 92 On Entrance 33 | . 6 12 11 25 35 47 49 49 60 1 67 75 Naked Turns 205 | . . . . . . . . . 32 173 . . Heaviest Build 128 | 11 29 31 41 52 53 62 61 128 128 20 76 103 Greatest Support 121 | 40 40 26 34 68 62 70 70 70 70 75 121 28 Greatest Overweight (x) 3 | . 1 2 3 . 1 2 . 1 1 1 2 3 Average Overweight (x) . | . . 1 1 . . . . . . . . 2 Largest Inventory Capacity 25 | 8 15 15 15 15 15 15 15 25 25 5 15 15 Average Capacity 13 | 7 14 15 15 15 15 15 15 23 18 5 7 15 Most Carried 21 | 5 11 14 15 15 15 15 15 16 21 5 10 9 Average Carried 11 | 2 7 12 14 14 14 14 15 15 13 4 5 6 Final Capacity 25 | 8 15 15 15 15 15 15 15 25 5 5 15 15 Final Carried 16 | 3 11 14 15 13 15 15 15 16 2 5 8 9 Class Distribution -------------------- 47% | Mutant 20% | Derelict-Mutant 14% | Scavenger-Mutant 8% | Scavenger-Tank 6% | Wizard-Mutant Dominant Class ---------------- Mutant | -10/Materials Mutant | -10/Mines Mutant | -9/Materials Scavenger-Mutant | -8/Materials Mutant | -7/Factory Derelict-Mutant | -7/Lower Caves Derelict-Mutant | -7/Lower Caves Derelict-Mutant | -6/Factory Mutant | -6/Waste Wizard-Mutant | -6/Factory Scavenger-Tank | -5/Factory Scavenger-Tank | -4/Factory Resources | -11 -10 -10 -9 -8 -7 -7 -7 -6 -6 -6 -5 -4 ----------- Run | Yrd Mat Min Mat Mat Fac Low Low Fac Was Fac Fac Fac Matter Collected 5702 | 260 373 206 464 758 1573 458 90 . 163 . 1219 138 Remotely . | . . . . . . . . . . . . . Salvage Created 7585 | 219 132 245 948 1093 2321 401 180 . 277 55 1603 111 Parts 377 | 17 10 15 58 57 127 13 3 . 5 2 66 4 Haulers Intercepted 2 | . . . . 1 1 . . . . . . . Recyclers Shooed 5 | 1 . . 2 . 1 . . . . . 1 . Parts Field Recycled . | . . . . . . . . . . . . . Retrieved Matter . | . . . . . . . . . . . . . Parts Self-Destructed 9 | . . . . . . 6 3 . . . . . Prevented . | . . . . . . . . . . . . . Kills | -11 -10 -10 -9 -8 -7 -7 -7 -6 -6 -6 -5 -4 ------- Run | Yrd Mat Min Mat Mat Fac Low Low Fac Was Fac Fac Fac Combat Hostiles Destroyed 128 | . 6 13 23 16 37 11 1 . 1 1 17 2 Melee 10 | . . 5 . . . . . . . . 5 . Guns 87 | . 4 7 23 14 27 3 1 . . 1 7 . Cannons 11 | . . . . . 4 . . . . . 5 2 AOE 20 | . 2 1 . 2 6 8 . . 1 . . . Classes Destroyed 18 | 3 3 1 3 3 3 1 . . 1 . . . Worker 9 | 2 . . . 1 3 . . . . 1 2 . Builder 9 | . 1 . . . 6 . . . . . 2 . Tunneler 5 | 5 . . . . . . . . . . . . Hauler 2 | . . . . 1 1 . . . . . . . Recycler 14 | 1 . 1 1 2 5 . . . . . 4 . Operator 2 | . . . 1 . 1 . . . . . . . Watcher 9 | . . . 4 1 1 . . . . . 2 1 Swarmer 26 | . 3 8 10 . 3 2 . . . . . . Grunt 43 | . 3 . 7 6 17 5 . . . . 5 . Brawler 2 | . . . . . 1 1 . . . . . . Duelist 2 | . . . . . 1 1 . . . . . . Sentry 23 | . . . 6 5 6 2 1 . . . 3 . Specialist 2 | . . . . 2 . . . . . . . . Hunter 11 | . . . . 3 3 . . . . . 3 2 Programmer 13 | . . . . . 6 . . . . 1 6 . Compactor 1 | . . . . . . . . . 1 . . . Tinkerer 1 | . . . . . . 1 . . . . . . Assembled 5 | . . 5 . . . . . . . . . . Best Kill Streak 10 | 5 3 3 4 3 8 10 1 . 1 2 7 1 Combat Bots Only 10 | . 3 3 3 3 5 10 1 . 1 1 5 1 Max Kills in Single Turn 3 | 1 2 2 1 2 3 3 1 . 1 2 2 1 Gunslinging 1 | . 1 . . . . . . . . . . . Exploded 3 | . 1 1 . 2 2 3 . . 1 . . . Melee 1 | . . 1 . . . . . . . . 1 . Uniques/NPCs Destroyed . | . . . . . . . . . . . . . Combat | -11 -10 -10 -9 -8 -7 -7 -7 -6 -6 -6 -5 -4 -------- Run | Yrd Mat Min Mat Mat Fac Low Low Fac Was Fac Fac Fac Hostile Shots Fired 1072 | . 24 73 91 118 361 35 27 . 8 59 198 78 Missed 319 | . 6 21 13 40 128 15 10 . 1 16 43 26 Hits 753 | . 18 52 78 78 233 20 17 . 7 43 155 52 Melee 16 | . . 3 . . 6 . . . 7 . . . Projectile 737 | . 18 49 78 78 227 20 17 . . 43 155 52 Critical Strikes 37 | . 1 2 3 4 7 1 . . 4 1 12 2 Part Disruptions 2 | . . 2 . . . . . . . . . . Damage Taken 11267 | . 507 575 776 1403 3214 285 103 . 335 390 2719 960 Core 1149 | . 105 60 102 86 278 12 4 . 197 23 236 46 Absorbed by Shields 381 | . . . 102 . 63 105 . . . . . 111 Ignored by Resistances 620 | . . . . . 23 . 22 . 12 68 495 . Regen/Repaired (Parts) 291 | . . . 86 91 81 . . . . . 33 . Core Remaining (%) 71 | 100 . 34 74 84 . . 58 . . 74 76 . Volleys Fired 449 | 24 13 19 72 71 134 18 5 3 9 11 55 15 Largest 3 | 2 2 2 2 2 2 2 2 2 2 2 3 3 Hottest 128 | 90 80 80 98 56 68 64 56 56 56 45 113 128 Shots Fired 892 | 48 24 36 142 142 254 39 12 6 13 20 122 34 Gun 796 | 48 21 34 142 142 225 35 12 6 12 20 88 11 Cannon 80 | . . . . . 23 . . . . . 34 23 Launcher 16 | . 3 2 . . 6 4 . . 1 . . . Special . | . . . . . . . . . . . . . Kinetic 705 | . . 4 70 142 248 35 12 6 12 20 122 34 Thermal 171 | 48 21 30 72 . . . . . . . . . Explosive 16 | . 3 2 . . 6 4 . . 1 . . . Electromagnetic . | . . . . . . . . . . . . . Robot Hit Streak 22 | 4 9 4 10 19 18 7 6 . 22 3 7 6 Robot Miss Streak 8 | 3 2 3 3 2 3 1 1 . 1 4 8 4 Penetration Max 1 | . . . . 1 1 . 1 . . . 1 1 Secondary Targets 9 | . 1 2 . 1 5 . . . . . . . Max Gunslinging Chain 1 | . 1 1 . 1 1 . . . . . . . Shots Hit Robots 605 | 27 17 27 82 118 187 27 6 . 13 9 75 17 Core Hits 309 | 9 11 14 40 39 98 29 4 . 7 4 46 8 Critical Kills 8 | . . 2 . 2 1 1 . . . 1 1 . Critical Parts Destroyed 7 | . . 1 . . 3 1 . . . . 2 . Critical Strikes 30 | 2 . 3 3 2 6 2 . . . 1 9 2 Burn 5 | 2 . . 3 . . . . . . . . . Destroy 12 | . . . . 2 4 2 . . . 1 3 . Blast 7 | . . . . . 2 . . . . . 3 2 Smash 3 | . . 3 . . . . . . . . . . Impale 3 | . . . . . . . . . . . 3 . Melee Attacks 57 | . 7 19 1 . . . . . . . 30 . Impact 27 | . 7 19 1 . . . . . . . . . Slashing . | . . . . . . . . . . . . . Piercing 30 | . . . . . . . . . . . 30 . Sneak Attacks 3 | . 1 1 . . . . . . . . 1 . Combat Hostiles . | . . . . . . . . . . . . . Follow-up Attacks . | . . . . . . . . . . . . . Damage Inflicted 15887 | 343 384 576 1406 2266 5119 1348 194 . 516 299 2875 561 Guns 10369 | 343 171 218 1405 2089 3427 468 194 . 248 293 1401 112 Cannons 1542 | . . . . . 424 . . . . . 756 362 Explosions 3028 | . 145 80 . 177 1268 880 . . 268 . 123 87 Melee 934 | . 68 278 . . . . . . . . 588 . Ramming 14 | . . . 1 . . . . . . 6 7 . Kinetic 10188 | . . 10 404 2089 3851 468 194 . 248 293 2157 474 Thermal 2499 | 343 171 208 1001 177 389 . . . . . 123 87 Explosive 2252 | . 145 80 . . 879 880 . . 268 . . . Electromagnetic . | . . . . . . . . . . . . . Impact 346 | . 68 278 . . . . . . . . . . Slashing . | . . . . . . . . . . . . . Piercing 588 | . . . . . . . . . . . 588 . Highest Corruption 9 | . 6 9 . . 5 5 5 . 6 8 7 . Average Corruption 5 | . 5 7 . . 3 5 5 . 6 7 5 . Corruption Purged . | . . . . . . . . . . . . . Corruption Blocked . | . . . . . . . . . . . . . Effects 233 | . 22 39 . . 47 50 23 . 3 22 27 . Message Errors 55 | . 4 11 . . 16 11 4 . 1 4 4 . Matter Fused 59 | . 11 9 . . 13 13 3 . . 5 5 . Heat Flow Errors 29 | . 2 6 . . 4 5 4 . . 4 4 . Energy Discharges 26 | . 1 3 . . 6 6 5 . . 4 1 . Parts Rejected 1 | . . 1 . . . . . . . . . . Parts Fused 5 | . . . . . 1 1 1 . . 1 1 . Data Loss (minor) 29 | . . 3 . . 6 5 4 . 2 2 7 . Data Loss (major) 10 | . 3 2 . . . 4 . . . 1 . . Misfires 8 | . 1 2 . . . 3 2 . . . . . Alerts 4 | . . . . . 1 2 . . . . 1 . Weapon Failures 7 | . . 2 . . . . . . . 1 4 . Overload Shots . | . . . . . . . . . . . . . Overflow Damage 432 | . . 69 . 105 188 17 . . . . 43 10 Projectiles 59 | . . . . . 11 . . . . . 38 10 Explosions 307 | . . 8 . 105 177 17 . . . . . . Melee 66 | . . 61 . . . . . . . . 5 . Knockbacks 11 | . . . . . 1 . . . . . 8 2 Impact . | . . . . . . . . . . . . . Kinetic 10 | . . . . . 1 . . . . . 7 2 Secondary 1 | . . . . . . . . . . . 1 . Self-Inflicted Damage 601 | . . . . 214 169 . . . 58 . . 160 Shots 9 | . . . . 3 3 . . . 1 . . 2 Rammed 5 | . . . . . . . . . . 1 4 . Targets Rammed 6 | . . . 1 . . . . . . 1 4 . Kicked 1 | . . . 1 . . . . . . . . . Crushed . | . . . . . . . . . . . . . Highest Temperature 546 | 184 259 269 302 39 277 281 272 . . 222 546 172 Average Temperature 84 | 71 67 79 88 11 41 101 97 . . 107 157 65 Received Heat Transfer 2465 | . 60 300 254 333 741 60 36 . . 99 582 . Effects 19 | . . 2 3 . 2 . . . . . 12 . Shutdowns 4 | . . . . . . . . . . . 4 . Energy Bleed 4 | . . 1 . . 1 . . . . . 2 . Interference 8 | . . 1 3 . 1 . . . . . 3 . Matter Decay 2 | . . . . . . . . . . . 2 . Damage (minor) 1 | . . . . . . . . . . . 1 . Siege Activations . | . . . . . . . . . . . . . Martial Activations . | . . . . . . . . . . . . . Shielding Activations . | . . . . . . . . . . . . . Robots Disrupted . | . . . . . . . . . . . . . Combat Hostiles . | . . . . . . . . . . . . . Robots Corrupted 1 | . . 1 . . . . . . . . . . Combat Hostiles . | . . . . . . . . . . . . . Parts Fried 1 | . . 1 . . . . . . . . . . Impact Corruptions 3 | . . 3 . . . . . . . . . . Robots Melted . | . . . . . . . . . . . . . Combat Hostiles . | . . . . . . . . . . . . . Parts Melted 7 | 3 . . 4 . . . . . . . . . Heat Transferred 4290 | 1053 350 450 1887 100 250 . . . . . 100 100 Parts Sabotaged . | . . . . . . . . . . . . . Parts Stolen . | . . . . . . . . . . . . . Parts Stripped . | . . . . . . . . . . . . . Power Chain Reactions . | . . . . . . . . . . . . . Alert | -11 -10 -10 -9 -8 -7 -7 -7 -6 -6 -6 -5 -4 ------- Run | Yrd Mat Min Mat Mat Fac Low Low Fac Was Fac Fac Fac Maximum Alert Level 2 | . . . 1 1 2 . . . . . 2 1 Low Security (%) 75 | 100 100 100 59 27 67 . . 100 100 100 88 24 Level 1 19 | . . . 40 72 15 . . . . . 4 75 Level 2 5 | . . . . . 17 . . . . . 6 . Level 3 . | . . . . . . . . . . . . . Level 4 . | . . . . . . . . . . . . . Level 5 . | . . . . . . . . . . . . . High Security . | . . . . . . . . . . . . . Max Security . | . . . . . . . . . . . . . Peak Influence 553 | 20 70 121 285 351 553 . . . 9 55 505 320 Initial 241 | . . . . 113 156 . . . . . . 241 Average 113 | 2 13 18 150 214 203 . . . . 10 80 232 Influence Increases 4791 | 40 194 211 761 642 1468 220 20 . 9 141 866 219 Destroy 0b10 Robot/C 2440 | . 120 160 460 320 740 220 20 . . 20 340 40 Destroy 0b10 Robot/NC 250 | 40 5 5 30 25 85 . . . . 5 50 5 Destroy Leader 652 | . 30 20 138 114 224 . . . . 10 104 12 Successful Hack 192 | . 24 . 39 26 87 . . . . . 16 . Disable Machine 465 | . . . 15 60 180 . . . . 15 135 60 Destroy Structure 492 | . 15 11 4 52 122 . . . 9 1 206 72 Partial Spotted 30 | . . . . . . . . . . 30 . . Lose Combat Pursuer 270 | . . 15 75 45 30 . . . . 60 15 30 Influence Decreases 4581 | 40 194 211 493 565 1422 611 20 . 9 141 373 502 Entered New Map 742 | . . . . 155 189 146 . . . . . 252 Time Decay 3096 | 40 194 210 463 380 670 455 20 . . 141 293 230 Lost Part 319 | . . . 30 30 140 10 . . 9 . 80 20 Lost Ally 1 | . . 1 . . . . . . . . . . Purge Threat 423 | . . . . . 423 . . . . . . . Squads Dispatched 40 | . 4 . 3 6 16 . . . . 4 6 1 Investigation 12 | . 3 . . 2 3 . . . . 2 2 . Extermination 10 | . . . . . 6 . . . . 1 3 . Reinforcement 17 | . 1 . 3 4 6 . . . . 1 1 1 Assault 1 | . . . . . 1 . . . . . . . Garrison . | . . . . . . . . . . . . . Intercept . | . . . . . . . . . . . . . Searches Triggered . | . . . . . . . . . . . . . Construction Impeded 5 | . . . . 1 3 . . . . . 1 . Haulers Reinforced . | . . . . . . . . . . . . . Active Scanning Responses . | . . . . . . . . . . . . . Cargo Convoy Interrupts . | . . . . . . . . . . . . . Stealth | -11 -10 -10 -9 -8 -7 -7 -7 -6 -6 -6 -5 -4 --------- Run | Yrd Mat Min Mat Mat Fac Low Low Fac Was Fac Fac Fac Distress Signals 13 | . . 2 5 3 . . . . . . 1 2 Communications Jammed . | . . . . . . . . . . . . . Distress Signals . | . . . . . . . . . . . . . Times Spotted 212 | . 7 21 40 30 48 9 1 . 6 12 21 17 Peak Tracking Total 11 | . 3 4 4 6 5 9 1 . 5 4 4 11 Tactical Retreats 16 | . . 6 4 1 2 . . . . 1 1 1 Traps | -11 -10 -10 -9 -8 -7 -7 -7 -6 -6 -6 -5 -4 ------- Run | Yrd Mat Min Mat Mat Fac Low Low Fac Was Fac Fac Fac Traps Triggered 5 | . 1 . 1 . . . . 1 . . 2 . Indirectly . | . . . . . . . . . . . . . Trap Hack Attempts . | . . . . . . . . . . . . . Triggered . | . . . . . . . . . . . . . Disarmed . | . . . . . . . . . . . . . Reprogrammed . | . . . . . . . . . . . . . Reused . | . . . . . . . . . . . . . Traps Extracted . | . . . . . . . . . . . . . Installed . | . . . . . . . . . . . . . Triggered . | . . . . . . . . . . . . . Machines | -11 -10 -10 -9 -8 -7 -7 -7 -6 -6 -6 -5 -4 ---------- Run | Yrd Mat Min Mat Mat Fac Low Low Fac Was Fac Fac Fac Machines Disabled 34 | . . . 1 4 12 3 . . . 1 9 4 Max in Single Turn 5 | . . . 1 3 4 1 . . . 1 5 2 Garrison Access 4 | . . . . . 2 . . . . . 2 . Machines Repaired . | . . . . . . . . . . . . . Machines Dismantled . | . . . . . . . . . . . . . Machines Sabotaged . | . . . . . . . . . . . . . Overloaded Fab Kills . | . . . . . . . . . . . . . Hacking | -11 -10 -10 -9 -8 -7 -7 -7 -6 -6 -6 -5 -4 --------- Run | Yrd Mat Min Mat Mat Fac Low Low Fac Was Fac Fac Fac Machines Accessed 59 | . 7 1 10 7 17 1 1 . . 6 9 . Terminals 34 | . 7 . 8 5 9 . . . . 3 2 . Fabricators 4 | . . . . . 2 . . . . 1 1 . Repair Stations 7 | . . . 1 2 2 . . . . 1 1 . Recycling Units 4 | . . . . . 1 . . . . . 3 . Scanalyzers 3 | . . . 1 . 1 . . . . 1 . . Garrison Access 4 | . . . . . 2 . . . . . 2 . Total Hacks 161 | . 23 1 37 18 41 1 1 . . 16 23 . Successful 83 | . 10 1 21 6 23 1 1 . . 6 14 . Failed 76 | . 12 . 15 12 18 . . . . 10 9 . Catastrophic 18 | . . . 2 3 2 . . . . 6 5 . Database Lockouts 2 | . 1 . 1 . . . . . . . . . Manual 47 | . 21 . 16 5 . . . . . 3 2 . Terminals 97 | . 23 . 28 15 18 . . . . 9 4 . Fabricators 7 | . . . . . 4 . . . . 2 1 . Repair Stations 16 | . . . 3 3 6 . . . . 1 3 . Recycling Units 15 | . . . . . 4 . . . . . 11 . Scanalyzers 15 | . . . 6 . 5 . . . . 4 . . Garrison Access 8 | . . . . . 4 . . . . . 4 . Terminal Hacks 30 | . 4 1 11 2 8 1 1 . . 1 1 . Record 1 | . . . 1 . . . . . . . . . Part Schematic 2 | . . . . . 2 . . . . . . . Robot Analysis 7 | . 2 . 3 2 . . . . . . . . Prototype ID Bank 1 | . . . 1 . . . . . . . . . Open Door 3 | . . 1 . . . 1 1 . . . . . Branch Access Points 3 | . 1 . 1 . 1 . . . . . . . Terminal Index 1 | . . . . . 1 . . . . . . . Repair Station Index 1 | . . . 1 . . . . . . . . . Alert Level 1 | . . . 1 . . . . . . . . . Unreport Threat 3 | . . . . . 3 . . . . . . . Locate Traps 3 | . . . 1 . 1 . . . . 1 . . Recall Investigation 1 | . . . 1 . . . . . . . . . Recall Reinforcements 1 | . 1 . . . . . . . . . . . Registered Components 2 | . . . 1 . . . . . . . 1 . Fabricator Hacks 7 | . . . . . 4 . . . . 2 1 . Network Status 2 | . . . . . 1 . . . . . 1 . Load Schematic 3 | . . . . . 2 . . . . 1 . . Build 2 | . . . . . 1 . . . . 1 . . Repair Station Hacks 11 | . . . 2 2 4 . . . . . 3 . Scan Component 6 | . . . 1 1 3 . . . . . 1 . Repair 4 | . . . 1 1 1 . . . . . 1 . Refit 1 | . . . . . . . . . . . 1 . Recycling Unit Hacks 8 | . . . . . 1 . . . . . 7 . Process 4 | . . . . . 1 . . . . . 3 . Report Inventory 2 | . . . . . . . . . . . 2 . Retrieve Matter 2 | . . . . . . . . . . . 2 . Scanalyzer 13 | . . . 6 . 4 . . . . 3 . . Insert Component 7 | . . . 3 . 2 . . . . 2 . . Analyze 6 | . . . 3 . 2 . . . . 1 . . Garrison Access Hacks 4 | . . . . . 2 . . . . . 2 . Seal Access 4 | . . . . . 2 . . . . . 2 . Unauthorized Hacks 10 | . 6 . 2 2 . . . . . . . . Terminals 10 | . 6 . 2 2 . . . . . . . . Botnet 10 | . 6 . 2 2 . . . . . . . . Fabricators . | . . . . . . . . . . . . . Repair Stations . | . . . . . . . . . . . . . Recycling Units . | . . . . . . . . . . . . . Scanalyzers . | . . . . . . . . . . . . . Garrison Access . | . . . . . . . . . . . . . Data Cores Recovered . | . . . . . . . . . . . . . Used . | . . . . . . . . . . . . . Hacking Detections 48 | . 7 . 8 7 15 . . . . 5 6 . Full Trace Events 13 | . 2 . 2 2 3 . . . . 2 2 . Feedback Events 1 | . . . . . . . . . . 1 . . Corruption 1 | . . . . . . . . . . 1 . . Feedback Blocked . | . . . . . . . . . . . . . Robot Schematics Acquired . | . . . . . . . . . . . . . Robots Built . | . . . . . . . . . . . . . Authchips . | . . . . . . . . . . . . . Time . | . . . . . . . . . . . . . Total Robot Build Rating . | . . . . . . . . . . . . . Part Schematics Acquired 8 | . . . 3 . 4 . . . . 1 . . Parts Built 3 | . . . . . 2 . . . . 1 . . Authchips . | . . . . . . . . . . . . . Time 94 | . . . . . 36 . . . . 58 . . Total Part Build Rating 13 | . . . . . 6 . . . . 7 . . Parts Repaired 4 | . . . 1 1 1 . . . . . 1 . Time 146 | . . . 32 38 38 . . . . . 38 . Parts Recycled . | . . . . . . . . . . . . . Recycled Matter 289 | . . . . . 243 . . . . . 46 . Retrieved Matter 27 | . . . . . . . . . . . 27 . Retrieved Components . | . . . . . . . . . . . . . Parts Scanalyzed 6 | . . . 3 . 2 . . . . 1 . . Part Schematics Acquired 6 | . . . 3 . 2 . . . . 1 . . Parts Damaged 1 | . . . . . . . . . . 1 . . Bothacking | -11 -10 -10 -9 -8 -7 -7 -7 -6 -6 -6 -5 -4 ------------ Run | Yrd Mat Min Mat Mat Fac Low Low Fac Was Fac Fac Fac Used RIF Installer . | . . . . . . . . . . . . . Robots Hacked . | . . . . . . . . . . . . . Non-combat . | . . . . . . . . . . . . . Combat . | . . . . . . . . . . . . . Robot Hacks Applied . | . . . . . . . . . . . . . Relay Couplers Released 3 | . . . . . 3 . . . . . . . Programmers 3 | . . . . . 3 . . . . . . . Fabnet Peak Effective % . | . . . . . . . . . . . . . Robots Rewired . | . . . . . . . . . . . . . Allies Hacked . | . . . . . . . . . . . . . Hacks Repelled . | . . . . . . . . . . . . . Allies | -11 -10 -10 -9 -8 -7 -7 -7 -6 -6 -6 -5 -4 -------- Run | Yrd Mat Min Mat Mat Fac Low Low Fac Was Fac Fac Fac Total Allies 1 | . . 1 . . . . . . . . . . Largest Group 1 | . . 1 . . . . . . . . . . Highest-Rated Group 31 | . . 31 . . . . . . . . . . Highest-Rated Ally 31 | . . 31 . . . . . . . . . . Total Orders . | . . . . . . . . . . . . . Ally Attacks 3 | . . 3 . . . . . . . . . . Total Damage 40 | . . 40 . . . . . . . . . . Kills 1 | . . 1 . . . . . . . . . . Allies Corrupted . | . . . . . . . . . . . . . Allies Melted . | . . . . . . . . . . . . . Intel | -11 -10 -10 -9 -8 -7 -7 -7 -6 -6 -6 -5 -4 ------- Run | Yrd Mat Min Mat Mat Fac Low Low Fac Was Fac Fac Fac Active Infowar (turns) 2195 | . 910 451 293 . . . . 467 74 . . . Terrain 2195 | . 910 451 293 . . . . 467 74 . . . Robot Analysis Total 7 | . 2 . 3 2 . . . . . . . . Derelict Logs Recovered 6 | . . 2 . . . 1 3 . . . . . Drone Launches . | . . . . . . . . . . . . . Drone Recoveries . | . . . . . . . . . . . . . Exploration | -11 -10 -10 -9 -8 -7 -7 -7 -6 -6 -6 -5 -4 ------------- Run | Yrd Mat Min Mat Mat Fac Low Low Fac Was Fac Fac Fac Turns Passed 14823 | 242 1085 1196 1790 893 2679 1935 1220 484 109 729 1972 489 Spaces Moved 8884 | 109 588 548 764 449 1815 1103 985 252 89 913 966 303 Core 887 | 16 . . . . . . . . 65 806 . . Treads 1324 | 93 240 . . . . . . . . 107 884 . Legs 6288 | . 348 548 764 449 1815 1103 985 252 24 . . . Wheels 385 | . . . . . . . . . . . 82 303 Hover . | . . . . . . . . . . . . . Flight . | . . . . . . . . . . . . . Fastest Speed 50 | 50 120 190 190 115 112 112 122 122 50 50 130 130 Average Speed 140 | 143 162 190 194 122 113 168 122 184 89 69 163 140 Slowest Speed 330 | 160 190 260 330 130 190 265 122 197 197 160 240 145 Overloaded Moves . | . . . . . . . . . . . . . Propulsion Burnouts . | . . . . . . . . . . . . . Robots Hopped . | . . . . . . . . . . . . . Potential Cave-ins . | . . . . . . . . . . . . . Cave-ins Triggered 2 | . 1 . . . 1 . . . . . . . Exploration Rate (%) 53 | 6 97 88 79 46 51 96 97 8 72 22 23 9 Regions Visited 12 Branch Regions 3 Pre-discovered Areas 1 | . . 1 . . . . . . . . . . Known Exits Taken 4 | . 1 . 1 . 1 . . . . 1 . . Unknown Exits Taken 6 | 1 . 1 . 1 . 1 1 . . . 1 . Scrap Searched 13 | . . 1 . . . 9 3 . . . . . Spaces Dug 15 | . 4 . 1 . 3 . . . . . 7 . Terrain Destroyed 429 | . 18 14 1 59 154 15 . . 11 2 122 33 Melee 12 | . 4 . 1 . . . . . . . 7 . Projectile 77 | . . . . 1 11 . . . . 2 53 10 AOE 340 | . 14 14 . 58 143 15 . . 11 . 62 23 Terrain Rammed . | . . . . . . . . . . . . . Walls Destroyed . | . . . . . . . . . . . . . Machines Disabled . | . . . . . . . . . . . . . Actions | -11 -10 -10 -9 -8 -7 -7 -7 -6 -6 -6 -5 -4 --------- Run | Yrd Mat Min Mat Mat Fac Low Low Fac Was Fac Fac Fac Total 10325 | 146 681 630 944 668 2198 1148 993 265 105 983 1214 350 Wait 489 | . 46 27 48 97 148 11 . . . 22 86 4 Move 8873 | 108 587 547 763 448 1814 1102 984 252 88 912 965 303 Hop . | . . . . . . . . . . . . . Pick Up 131 | 8 14 8 17 6 34 1 . 2 4 10 17 10 Fast Attach 66 | 1 . . 7 9 6 4 2 3 . 14 20 . Attach 69 | 5 5 5 6 5 17 . . . 3 3 11 9 Detach 1 | . . . . . . . . . . . . 1 Swap 70 | . 5 5 11 12 18 5 . 2 . 2 8 2 Drop 114 | . 4 . 18 20 27 7 2 3 1 8 18 6 Fire 449 | 24 13 19 72 71 134 18 5 3 9 11 55 15 Melee 57 | . 7 19 1 . . . . . . . 30 . Ram . | . . . . . . . . . . . . . Kick 1 | . . . 1 . . . . . . . . . Crush 5 | . . . . . . . . . . 1 4 . Escape Stasis . | . . . . . . . . . . . . . Rewire . | . . . . . . . . . . . . . Trap . | . . . . . . . . . . . . . Miscellaneous . | . . . . . . . . . . . . . Route ------- -11/Scrapyard -10/Materials (discovered 5 exits: *Mat x3 / *Min / [*Sub]) -10/Mines (discovered 2 exits: *Mat / Exi) -9/Materials (discovered 4 exits: *Mat x3 / Min) -8/Materials (discovered 3 exits: *Fac / [*Sto x2]) -7/Factory (discovered 4 exits: *Fac x2 / *Low x2) -7/Lower Caves -7/Lower Caves (discovered 2 exits: *Fac / [*Dat]) -6/Factory (discovered 2 exits: Fac / Low) -6/Waste -6/Factory -5/Factory (discovered 3 exits: [*Fac] / [*Upp x2]) -4/Factory History --------- Turn | Location | Event 6 | -11/Scrapyard | Discovered new exit (range 15) 243 | -11/Scrapyard | Entered Materials 244 | -10/Materials | Met a group of wandering Federalists 312 | -10/Materials | Build established: Mutant 396 | -10/Materials | Discovered new exit (range 15) 489 | -10/Materials | Crushed by falling debris 616 | -10/Materials | Discovered new exit (range 10) 869 | -10/Materials | Identified exit to Mines 952 | -10/Materials | Discovered new exit (range 14) 978 | -10/Materials | Central database locked down 1122 | -10/Materials | Discovered new exit (range 16) 1197 | -10/Materials | Discovered new exit (range 5) 1328 | -10/Materials | Entered Mines 1419 | -10/Mines | Escorted by a lone wolf Derelict 1526 | -10/Mines | Assembled infested the area 1843 | -10/Mines | Met a Derelict who couldn't figure out how to use a Trap Extractor 1907 | -10/Mines | Learned location of Storage (-8) 1968 | -10/Mines | Core integrity fell below 50% 2001 | -10/Mines | Identified exit to Exiles 2262 | -10/Mines | Learned location of 2 exits from Materials 2496 | -10/Mines | Discovered new exit (range 14) 2524 | -10/Mines | Entered Materials 2524 | -9/Materials | Evolved 2 slots: Utility x2 2525 | -9/Materials | Identified exit to Materials 2525 | -9/Materials | Identified exit to Mines 2784 | -9/Materials | Repaired Imp. Aluminum Leg? 3558 | -9/Materials | Central database locked down 3582 | -9/Materials | Build established: Scavenger-Mutant 3902 | -9/Materials | Discovered exit to Materials (range 16) 3932 | -9/Materials | Build established: Mutant 4249 | -9/Materials | Discovered exit to Materials (range 8) 4314 | -9/Materials | Entered another Materials area 4314 | -8/Materials | Evolved 2 slots: Propulsion x2 4515 | -8/Materials | Discovered new exit (range 7) 4563 | -8/Materials | Discovered new exit (range 10) 5022 | -8/Materials | Repaired Titanium Leg 5043 | -8/Materials | Build established: Scavenger-Mutant 5204 | -8/Materials | Discovered new exit (range 3) 5207 | -8/Materials | Entered Factory 5207 | -7/Factory | Evolved 2 slots: Utility x2 5557 | -7/Factory | Discovered new exit (range 15) 5793 | -7/Factory | Lost 3 parts (1p1u1w) 6075 | -7/Factory | Build established: Mutant 6170 | -7/Factory | Discovered new exit (range 15) 6454 | -7/Factory | Fabricated Hrd. Medium Armor Plating (x2) 6744 | -7/Factory | Identified exit to Lower Caves 7349 | -7/Factory | Lost 3 parts (1n1u1w) 7607 | -7/Factory | First assault squad dispatched 7701 | -7/Factory | Repaired VSS Leg 7862 | -7/Factory | Crushed by falling debris 7886 | -7/Factory | Entered Lower Caves 7900 | -7/Lower Caves | Attracted the attention of an 0b10 outpost 7946 | -7/Lower Caves | Destroyed 10 combat bots 8046 | -7/Lower Caves | Learned Factory security intel 8251 | -7/Lower Caves | Discovered new exit (range 12) 8464 | -7/Lower Caves | Entered a destroyed Warlord outpost 8867 | -7/Lower Caves | Build established: Derelict-Mutant 9043 | -7/Lower Caves | Encountered a Warlord checkpoint 9821 | -7/Lower Caves | Entered another Lower Caves area 9821 | -7/Lower Caves | Discovered new exit (range 6) 9825 | -7/Lower Caves | Learned location of 1 exit from Factory 10013 | -7/Lower Caves | Encountered a Warlord checkpoint 10148 | -7/Lower Caves | Learned 4 Factory zone layouts 10178 | -7/Lower Caves | Attracted the attention of an 0b10 checkpoint 10535 | -7/Lower Caves | Discovered new exit (range 3) 10974 | -7/Lower Caves | Learned location of 1 exit from Factory 11041 | -7/Lower Caves | Entered Factory 11041 | -6/Factory | Evolved 2 slots: Utility x2 11042 | -6/Factory | Identified exit to Factory 11042 | -6/Factory | Identified exit to Lower Caves 11525 | -6/Factory | Sucked down chute 11525 | -6/Factory | Entered Waste 11538 | -6/Waste | Spotted C-40 Crusher 11540 | -6/Waste | EMP discharged 11557 | -6/Waste | Spotted C-40 Crusher 11567 | -6/Waste | Spotted C-40 Crusher 11580 | -6/Waste | Crushed by Compactor (1 part destroyed, 2 dropped) 11583 | -6/Waste | Crushed by Compactor (1 part destroyed, 1 dropped) 11593 | -6/Waste | Crushed by Compactor (1 part destroyed, 2 dropped) 11594 | -6/Waste | Destroyed C-40 Crusher 11596 | -6/Waste | Crushed by Compactor (1 part destroyed, 1 dropped) 11596 | -6/Waste | Found Damper Plating 11599 | -6/Waste | Crushed by Compactor (1 part destroyed, 1 dropped) 11601 | -6/Waste | Crushed by Compactor (1 part destroyed, 1 dropped) 11602 | -6/Waste | Crushed by Compactor (1 part destroyed, 2 dropped) 11617 | -6/Waste | Spotted C-40 Crusher 11620 | -6/Waste | Spotted C-40 Crusher 11622 | -6/Waste | Spotted C-40 Crusher 11627 | -6/Waste | Discovered new exit (range 16) 11633 | -6/Waste | Lost 8 parts (4u4w) 11634 | -6/Waste | Entered Factory 12011 | -6/Factory | Fabricated Imp. Heavy Treads (x1) 12266 | -6/Factory | Build established: Wizard-Mutant 12339 | -6/Factory | Discovered exit to Factory (range 15) 12363 | -6/Factory | Entered another Factory area 12363 | -5/Factory | Evolved 2 slots: Power x1, Weapon x1 12411 | -5/Factory | Repaired Reflective Plating 12504 | -5/Factory | Discovered new exit (range 8) 13171 | -5/Factory | Discovered new exit (range 11) 13415 | -5/Factory | Lost 4 parts (2u2w) 13633 | -5/Factory | Discovered new exit (range 16) 13685 | -5/Factory | Build established: Scavenger-Tank 14335 | -5/Factory | Entered another Factory area 14335 | -4/Factory | Evolved 2 slots: Utility x2 14419 | -4/Factory | Build established: Scavenger-Mutant 14786 | -4/Factory | Build established: Scavenger-Tank 14824 | -4/Factory | Self-destructed Last Messages --------------- 14815_ U-05 Engineer builds a Door. 14816_ Acquired 3 matter. 14816_ R-10 Processor collects Wheel. 14817_ H-77 Assassin destroyed. 14819_ Slug penetrates S-27 Virus. 14819_ S-27 Virus destroyed. 14819_ Slug penetrates Subcomponent Replicator. 14820_ R-10 Processor collects Autogun. 14820_ Acquired 37 matter. 14820_ Critical hit (Destroy). 14820_ Enh. Gauss Cannon destroyed. 14822_ Penetrated by Slug. 14822_ Slug penetrates Terminal. 14822_ Lyr. Medium Armor Plating destroyed. 14822_ U-05 Engineer destroyed. 14823_ R-10 Processor collects Lgt. Ion Engine. 14823_ U-05 Engineer destroyed. 14823_ Acquired 42 matter. 14823_ K-01 Serf collects debris. 14823_ M-13 Machinist repairs U-05 Engineer Wheel. Map ----- +----------------------------------------------------+ | ?????????????????????????????????????????????????? | | ?????????????????????????????????????????????????? | | ?????????????????????????????????????????????????? | | ?????????????????????????????????????????????????? | | ?????????????????????????????????????????????????? | | ?????????????????????????????????????????????????? | | ?????????????????????????????????????????????????? | | ?????????????????????????????????????????????????? | | ???????????????????????????????????????????????? | | ????????????????????????????????????????????? | | ???????????????????? ????????????????????? | | ??????????????????? ???????????????????? | | ######?????????????????# gg#???????????????????? | | #?????????????????# #???????????????????? | | #?????????????????# #???????????????????? | | #?????????????????# #???????????????????? | | % #????????????????? #???????????????????? | | #?????????????????# #???????????????????? | | #?????????????????# #???????????????????? | | #????????????###### #???????????????????? | | #????????????? =* ! ! #???????????????????? | | #??????????????#%^ #???????????????????? | | #??????????????#= ^ %""#???????????????????? | | #??????????????# %%%""#???????????????????? | | +##+##??????????????# ^%=T"#???????????????????? | | ############????# ^""@=" #???????????????????? | | ## #????# "" [ #???????? ???????? | | ## #????# "" us #???? #??????? | | ## #????# ""! # #??????? | | + #????#w "mu! + #??????? | | #####+########## h R # #??????? | | o # #??????? | | h k #? ???????? | | ###### ##########w##############????????? | | ?????# ## #???# #???????????????? | | ?????# ## #???# #???????????????? | | ?????# ## #???# "" #???????????????? | | ?????# ## #???# """" " #???????????????? | | ?????# ## #???# """" "" #?????####??????? | | ?????# ## #???# """" "" #?????# ??????? | | ?????# ## ##### #?????# ????? | | ?????# ## + """" """" #?????# """?""" | | ?????# ## # """" """" #?????# """ """ | | ###### ## # """" """" #?????# """ """ | | ## + """" """" #?????#! "" "" | | ## # #?????# "" "" | | ## #######+######?????# | | #####+## ## #??????????# | | ###+#### ########### #??????????# | | # # #?????????# #??####????# | +----------------------------------------------------+ Best States ------------- Heat Dissipation 62 Energy Generation 29 Energy Capacity 365 Matter Stores 300 Matter Capacity 300 Sight Range 16 Terrain Scan Range 16 Terrain Scan Density 185 Armor Coverage 825 Resistance: KI 30 Resistance: TH 10 Resistance: EM 25 Point Defense Rating 80 Weapon Cycling 20 Evasion (%) 55 Targeting Accuracy 22 Target Analysis 6 Core Analysis 6 Recoil Reduction 4 Kinecelleration 40 Offensive Hacking 14 Defensive Hacking 60 Item Schematics ----------------- Hrd. Medium Armor Plating | -9/Materials | Scanalyzed Hcp. Matter Pod | -9/Materials | Scanalyzed Huge Storage Unit | -9/Materials | Scanalyzed Energy Filter | -7/Factory | Hacked Gauss Cannon | -7/Factory | Scanalyzed Hvy. Rocket Launcher | -7/Factory | Scanalyzed KE Penetrator | -7/Factory | Hacked Imp. Heavy Treads | -6/Factory | Scanalyzed Robot Schematics ------------------ None Fabricated ------------ Hrd. Medium Armor Plating | x2 | -7/Factory Imp. Heavy Treads | x1 | -6/Factory Repaired ---------- Imp. Aluminum Leg | 14% | -9/Materials Titanium Leg | 37% | -8/Materials VSS Leg | 10% | -7/Factory Reflective Plating | 72% | -5/Factory Alien Tech Used ----------------- None Achievements -------------- None Challenges ------------ None Game ------ Seed ArcsightCatalystChargecaster Manual? 0 Play Time 01:30:42 Cumulative 192.5 hours Start 2025.09.29 @ 23:12:20 End 2025.09.30 @ 00:43:53 Sessions 1 Manual Loads 0 Difficulty Rogue Special Mode None Game No. 305 Rogue 302 Adventurer 3 Explorer 0 Win Type - Total 1 Types 1/0/0/0/0/0/0/0/0/0 Lore% 64 Gallery% 60 Achievement% 47 Wizard Run 0 Options --------- Layout 0 ASCII 0 Keyboard 0 Movement Mouse Keybinds 0 Fullscreen 2 Font 18/SmallcapsGlow Map View 76x50 Zoom Use 0% Tactical HUD 1 Map Filters NONE Filters NONE Steam 1 RUN: e8977649-a1ed-4db8-a5bf-789469fe0f0b